fUSD/lending_fUSD_20250602
["ID","MTS","AMOUNT","RATE_DAILY","PERIOD"]
[363803065,1748877044399,-420.0,0.00019726,2]
[363803066,1748877044408,-420.0,0.00019726,2]
[363803067,1748877044418,-4005.24,0.00019726,2]
[363803068,1748877044427,-753.27,0.00019726,2]
[363803069,1748877044436,-420.0,0.00019726,2]
[363803070,1748877044445,-861.48,0.00019726,2]
[363803071,1748877044454,-420.0,0.00019726,2]
[363803072,1748877044462,-1037.88,0.00019726,2]
[363803073,1748877044471,-672.42,0.00019726,2]
[363803074,1748877044482,-420.0,0.00019726,2]
[363803076,1748877044492,-971.84,0.00019726,2]
[363803077,1748877044502,-936.87,0.00019726,2]
[363803078,1748877044511,-420.0,0.00019726,2]
[363803079,1748877044521,-425.45,0.00019726,2]
[363803080,1748877044530,-511.03,0.00019726,2]
[363803081,1748877044540,-2472.47,0.00019726,2]
[363803082,1748877044549,-420.0,0.00019726,2]
[363803083,1748877044560,-420.0,0.00019726,2]
[363803084,1748877044569,-420.0,0.00019726,2]
[363803085,1748877044579,-6455.59,0.00019726,2]
[363803086,1748877044588,-420.0,0.00019726,2]
[363803087,1748877044598,-420.0,0.00019726,2]
[363803088,1748877044608,-764.93,0.00019726,2]
[363803089,1748877044618,-541.48,0.00019726,2]
[363803090,1748877044628,-420.0,0.00019726,2]
[363803091,1748877044638,-420.0,0.00019726,2]
[363803092,1748877044647,-294.36,0.00019726,2]
[363803093,1748877044659,-739.88,0.00019726,2]
[363803094,1748877044668,-420.0,0.00019726,2]
[363803095,1748877044678,-1359.25,0.00019726,2]
[363803096,1748877044687,-420.0,0.00019726,2]
[363803097,1748877044697,-420.0,0.00019726,2]
[363803098,1748877044708,-496.08,0.00019726,2]
[363803099,1748877044717,-800.35,0.00019726,2]
[363803100,1748877044728,-420.0,0.00019726,2]
[363803101,1748877044738,-493.44,0.00019726,2]
[363803102,1748877044748,-420.0,0.00019726,2]
[363803103,1748877044758,-420.0,0.00019726,2]
[363803104,1748877044767,-550.46491317,0.00019726,2]
[363803105,1748877044777,-420.0,0.00019726,2]
[363803106,1748877044786,-283.41,0.00019726,2]
[363803107,1748877044796,-922.78,0.00019726,2]
[363803108,1748877044806,-1235.05,0.00019726,2]
[363803109,1748877044815,-420.0,0.00019726,2]
[363803110,1748877044824,-420.0,0.00019726,2]
[363803111,1748877044834,-420.0,0.00019726,2]
[363803112,1748877044845,-484.16,0.00019726,2]
[363803113,1748877044855,-420.0,0.00019726,2]
[363803114,1748877044864,-2195.15,0.00019726,2]
[363803115,1748877044874,-420.0,0.00019726,2]
[363803116,1748877044885,-420.0,0.00019726,2]
[363803117,1748877044895,-1392.38,0.00019726,2]
[363803118,1748877044905,-420.0,0.00019726,2]
[363803119,1748877044915,-2385.59680201,0.00019748,2]
[363803120,1748877044926,-1000.0,0.000198,2]
[363803121,1748877044936,-3600.0,0.000198,7]
[363803122,1748877044947,-164.23588849,0.00019802,2]
[363803123,1748877044957,-2385.59680201,0.00019824,2]
[363803124,1748877044966,-200.0,0.0001984,2]
[363803125,1748877044977,-5941.04,0.0001985,2]
[363803126,1748877044987,-420.0,0.00019863,2]
[363803127,1748877044997,-261.28,0.00019863,2]
[363803128,1748877045006,-420.0,0.00019863,2]
[363803129,1748877045016,-498.81,0.00019863,2]
[363803130,1748877045026,-420.0,0.00019863,2]
[363803131,1748877045035,-940.86,0.00019863,2]
[363803132,1748877045045,-1415.7,0.00019863,2]
[363803133,1748877045054,-510.9,0.00019863,2]
[363803134,1748877045064,-1767.05,0.00019863,2]
[363803135,1748877045074,-723.92,0.00019863,2]
[363803136,1748877045084,-420.0,0.00019863,2]
[363803137,1748877045093,-690.3,0.00019863,2]
[363803138,1748877045102,-801.53,0.00019863,2]
[363803139,1748877045111,-420.0,0.00019863,2]
[363803140,1748877045121,-420.0,0.00019863,2]
[363803141,1748877045131,-420.0,0.00019863,2]
[363803142,1748877045140,-420.0,0.00019863,2]
[363803143,1748877045150,-420.0,0.00019863,2]
[363803144,1748877045160,-4005.24,0.00019863,2]
[363803145,1748877045170,-753.27,0.00019863,2]
[363803146,1748877045180,-420.0,0.00019863,2]
[363803147,1748877045190,-861.48,0.00019863,2]
[363803148,1748877045200,-420.0,0.00019863,2]
[363803149,1748877045210,-1037.88,0.00019863,2]
[363803150,1748877045221,-672.42,0.00019863,2]
[363803151,1748877045232,-420.0,0.00019863,2]
[363803152,1748877045242,-971.84,0.00019863,2]
[363803153,1748877045251,-936.87,0.00019863,2]
[363803154,1748877045262,-420.0,0.00019863,2]
[363803155,1748877045273,-425.45,0.00019863,2]
[363803156,1748877045282,-511.03,0.00019863,2]
[363803157,1748877045292,-2472.47,0.00019863,2]
[363803158,1748877045302,-420.0,0.00019863,2]
[363803159,1748877045312,-420.0,0.00019863,2]
[363803160,1748877045323,-420.0,0.00019863,2]
[363803161,1748877045333,-6455.59,0.00019863,2]
[363803162,1748877045344,-420.0,0.00019863,2]
[363803163,1748877045354,-420.0,0.00019863,2]
[363803164,1748877045365,-764.93,0.00019863,2]
[363803165,1748877045374,-420.0,0.00019863,2]
[363803166,1748877045384,-541.48,0.00019863,2]
[363803167,1748877045394,-420.0,0.00019863,2]
[363803168,1748877045404,-739.88,0.00019863,2]
[363803169,1748877045414,-420.0,0.00019863,2]
[363803170,1748877045424,-1359.25,0.00019863,2]
[363803171,1748877045433,-420.0,0.00019863,2]
[363803172,1748877045443,-420.0,0.00019863,2]
[363803173,1748877045452,-496.08,0.00019863,2]
[363803174,1748877045462,-800.35,0.00019863,2]
[363803175,1748877045471,-182.65,0.00019863,2]
[363803176,1748877045482,-493.44,0.00019863,2]
[363803177,1748877045492,-420.0,0.00019863,2]
[363803178,1748877045502,-420.0,0.00019863,2]
[363803179,1748877045513,-420.0,0.00019863,2]
[363803180,1748877045522,-922.78,0.00019863,2]
[363803181,1748877045533,-1235.05,0.00019863,2]
[363803182,1748877045543,-420.0,0.00019863,2]
[363803183,1748877045552,-420.0,0.00019863,2]
[363803184,1748877045562,-420.0,0.00019863,2]
[363803185,1748877045572,-484.16,0.00019863,2]
[363803186,1748877045581,-420.0,0.00019863,2]
[363803187,1748877045591,-2195.15,0.00019863,2]
[363803188,1748877045602,-420.0,0.00019863,2]
[363803189,1748877045611,-420.0,0.00019863,2]
[363803190,1748877045622,-1392.38,0.00019863,2]
[363803191,1748877045633,-420.0,0.00019863,2]
[363803192,1748877045645,-300.0,0.00019881,2]
[363803193,1748877045655,-1467.0,0.00019888,2]
[363803194,1748877045666,-801.0,0.00019888,2]
[363803195,1748877045676,-635.0,0.00019888,2]
[363803196,1748877045688,-355.614247,0.00019896,2]
[363803197,1748877045698,-588.0,0.00019897,2]
[363803198,1748877045707,-1271.0,0.00019897,2]
[363803199,1748877045717,-557.0,0.00019897,2]
[363803200,1748877045728,-925.0,0.00019897,2]
[363803201,1748877045738,-209.58200072,0.00019898,2]
[363803202,1748877045748,-1329.8993058,0.00019898,2]
[363803203,1748877045758,-182.84688959,0.00019899,2]
[363803204,1748877045768,-2268.727,0.00019899,2]
[363803205,1748877045779,-162.38624171,0.00019899,2]
[363803206,1748877045789,-1368.0,0.000199,2]
[363803207,1748877045799,-1368.0,0.000199,2]
[363803208,1748877045808,-1368.0,0.000199,2]
[363803209,1748877045819,-1368.0,0.000199,2]
[363803210,1748877045828,-1368.0,0.000199,2]
[363803211,1748877045838,-1368.0,0.000199,2]
[363803212,1748877045851,-1368.0,0.000199,2]
[363803213,1748877045860,-1368.0,0.000199,2]
[363803214,1748877045870,-1368.0,0.000199,2]
[363803215,1748877045879,-1368.0,0.000199,2]
[363803216,1748877045890,-2385.59680201,0.000199,2]
[363803217,1748877045900,-700.0,0.000199,7]
[363803218,1748877045910,-1023.0,0.000199,2]
[363803219,1748877045923,-11177.24847533,0.000199,2]
[363803220,1748877045933,-216.7332381,0.000199,2]
[363803221,1748877045943,-164.23588849,0.000199,2]
[363803222,1748877045953,-1021.46568378,0.000199,2]
[363803223,1748877045962,-180.631,0.00019941,2]
[363803224,1748877045972,-7010.0,0.00019941,2]
[363803225,1748877045984,-4075.0,0.00019941,2]
[363803226,1748877045995,-882.0,0.00019941,2]
[363803227,1748877046005,-849.0,0.00019941,2]
[363803228,1748877046016,-500.0,0.00019973,2]
[363803229,1748877046026,-500.0,0.00019973,2]
[363803230,1748877046036,-500.0,0.00019973,2]
[363803231,1748877046046,-502.91855405,0.00019973,2]
[363803232,1748877046057,-507.15371216,0.00019973,2]
[363803233,1748877046067,-500.0,0.00019973,2]
[363803234,1748877046078,-500.0,0.00019973,2]
[363803235,1748877046088,-165.7171314,0.0001999,2]
[363803236,1748877046099,-233.24,0.00019995,2]
[363803237,1748877046110,-500.0,0.00019995,2]
[363803238,1748877046120,-500.0,0.00019995,2]
[363803239,1748877046131,-1513.42,0.00019995,2]
[363803240,1748877046141,-1513.42,0.00019995,2]
[363803241,1748877046151,-500.0,0.00019995,2]
[363803242,1748877046162,-500.0,0.00019995,2]
[363803243,1748877046172,-369093.37005437,0.00019995,2]
[363803244,1748877046181,-1264.0,0.00019996,2]
[363803245,1748877046191,-1469.5517884,0.00019996,2]
[363803246,1748877046201,-6074.9573285,0.00019996,2]
[363803247,1748877046211,-27112.2835744,0.00019996,2]
[363803248,1748877046222,-35578.2491068,0.00019996,2]
[363803249,1748877046233,-186974.69,0.00019996,2]
[363803250,1748877046243,-500.0,0.00019998,2]
[363803251,1748877046253,-500.0,0.00019998,2]
[363803252,1748877046264,-1362.00062862,0.00019999,2]
[363803253,1748877046274,-666.0,0.00019999,2]
[363803254,1748877046284,-666.0,0.00019999,2]
[363803255,1748877046295,-300.0,0.00019999,2]
[363803256,1748877046305,-300.0,0.00019999,2]
[363803257,1748877046315,-666.0,0.00019999,2]
[363803258,1748877046325,-300.0,0.00019999,2]
[363803259,1748877046335,-300.0,0.00019999,2]
[363803260,1748877046346,-300.0,0.00019999,2]
[363803261,1748877046356,-300.0,0.00019999,2]
[363803262,1748877046367,-300.0,0.00019999,2]
[363803263,1748877046377,-839.9998,0.00019999,2]
[363803264,1748877046388,-5127.14929788,0.00019999,2]
[363803265,1748877046399,-151.0,0.00019999,2]
[363803266,1748877046410,-151.0,0.00019999,2]
[363803267,1748877046421,-151.0,0.00019999,2]
[363803268,1748877046431,-1195.85,0.00019999,2]
[363803269,1748877046442,-1195.85,0.00019999,2]
[363803270,1748877046452,-2632.650723,0.00019999,2]
[363803271,1748877046463,-1195.85,0.00019999,2]
[363803272,1748877046473,-1195.85,0.00019999,2]
[363803273,1748877046484,-1195.85,0.00019999,2]
[363803274,1748877046495,-1195.85,0.00019999,2]
[363803275,1748877046504,-1195.85,0.00019999,2]
[363803276,1748877046514,-1195.85,0.00019999,2]
[363803277,1748877046524,-1195.85,0.00019999,2]
[363803278,1748877046534,-1195.85,0.00019999,2]
[363803279,1748877046544,-1195.85,0.00019999,2]
[363803280,1748877046554,-1195.85,0.00019999,2]
[363803281,1748877046564,-1195.85,0.00019999,2]
[363803282,1748877046574,-1195.85,0.00019999,2]
[363803283,1748877046585,-1195.85,0.00019999,2]
[363803284,1748877046595,-1195.85,0.00019999,2]
[363803285,1748877046605,-1195.85,0.00019999,2]
[363803286,1748877046615,-2632.650723,0.00019999,2]
[363803287,1748877046625,-1195.85,0.00019999,2]
[363803288,1748877046635,-1195.85,0.00019999,2]
[363803289,1748877046645,-1195.85,0.00019999,2]
[363803290,1748877046656,-1195.85,0.00019999,2]
[363803291,1748877046666,-1195.85,0.00019999,2]
[363803292,1748877046676,-1195.85,0.00019999,2]
[363803293,1748877046686,-1196.00841982,0.00019999,2]
[363803294,1748877046696,-500.0,0.00019999,2]
[363803295,1748877046706,-500.0,0.00019999,2]
[363803296,1748877046716,-500.0,0.00019999,2]
[363803297,1748877046727,-500.0,0.00019999,2]
[363803298,1748877046737,-500.0,0.00019999,2]
[363803299,1748877046747,-500.0,0.00019999,2]
[363803300,1748877046758,-500.0,0.00019999,2]
[363803301,1748877046769,-500.0,0.00019999,2]
[363803303,1748877046780,-500.0,0.00019999,2]
[363803305,1748877046791,-500.0,0.00019999,2]
[363803306,1748877046802,-500.0,0.00019999,2]
[363803308,1748877046812,-500.0,0.00019999,2]
[363803310,1748877046823,-500.0,0.00019999,2]
[363803312,1748877046834,-500.0,0.00019999,2]
[363803313,1748877046846,-500.0,0.00019999,2]
[363803314,1748877046857,-500.0,0.00019999,2]
[363803315,1748877046867,-500.0,0.00019999,2]
[363803316,1748877046878,-524.69566948,0.00019999,2]
[363803317,1748877046890,-151.0,0.00019999,2]
[363803318,1748877046900,-1513.42,0.00019999,2]
[363803319,1748877046911,-1513.42,0.00019999,2]
[363803320,1748877046922,-1513.42,0.00019999,2]
[363803321,1748877046932,-1513.42,0.00019999,2]
[363803322,1748877046942,-1513.42,0.00019999,2]
[363803323,1748877046952,-1513.42,0.00019999,2]
[363803324,1748877046963,-1513.42,0.00019999,2]
[363803325,1748877046974,-1513.42,0.00019999,2]
[363803326,1748877046987,-1513.42,0.00019999,2]
[363803327,1748877046997,-1513.42,0.00019999,2]
[363803328,1748877047007,-1513.42,0.00019999,2]
[363803329,1748877047018,-1513.42,0.00019999,2]
[363803330,1748877047028,-1513.42,0.00019999,2]
[363803331,1748877047039,-1513.42,0.00019999,2]
[363803332,1748877047048,-1513.42,0.00019999,2]
[363803333,1748877047059,-1513.42,0.00019999,2]
[363803334,1748877047069,-1513.42,0.00019999,2]
[363803335,1748877047079,-1513.42,0.00019999,2]
[363803336,1748877047090,-1513.42,0.00019999,2]
[363803337,1748877047100,-1513.61947133,0.00019999,2]
[363803338,1748877047111,-636.82,0.00019999,2]
[363803339,1748877047122,-168.505625,0.00019999,2]
[363803340,1748877047133,-168.505625,0.00019999,2]
[363803341,1748877047144,-500.0,0.00019999,2]
[363803342,1748877047155,-500.0,0.00019999,2]
[363803343,1748877047167,-500.0,0.00019999,2]
[363803344,1748877047178,-500.0,0.00019999,2]
[363803345,1748877047189,-174.05282742,0.00019999,2]
[363803346,1748877047200,-500.0,0.00019999,2]
[363803347,1748877047210,-500.0,0.00019999,2]
[363803348,1748877047220,-500.0,0.00019999,2]
[363803349,1748877047231,-500.0,0.00019999,2]
[363803350,1748877047242,-500.0,0.00019999,2]
[363803351,1748877047252,-500.0,0.00019999,2]
[363803352,1748877047262,-500.0,0.00019999,2]
[363803353,1748877047273,-500.0,0.00019999,2]
[363803354,1748877047284,-500.0,0.00019999,2]
[363803355,1748877047294,-500.0,0.00019999,2]
[363803356,1748877047304,-500.0,0.00019999,2]
[363803357,1748877047315,-500.0,0.00019999,2]
[363803358,1748877047326,-500.0,0.00019999,2]
[363803359,1748877047337,-382.02923201,0.00019999,2]
[363803360,1748877047348,-889.970059,0.00019999,2]
[363803361,1748877047359,-889.970059,0.00019999,2]
[363803362,1748877047370,-616.60629072,0.00019999,2]
[363803363,1748877047381,-500.0,0.00019999,2]
[363803364,1748877047391,-500.0,0.00019999,2]
[363803365,1748877047401,-201.57057131,0.00019999,2]
[363803366,1748877047412,-370.03932462,0.00019999,2]
[363803367,1748877047422,-500.0,0.00019999,2]
[363803368,1748877047432,-607.77233399,0.00019999,2]
[363803369,1748877047442,-582.12580266,0.00019999,2]
[363803370,1748877047453,-500.0,0.00019999,2]
[363803371,1748877047463,-582.12580266,0.00019999,2]
[363803372,1748877047474,-179.6264928,0.00019999,2]
[363803373,1748877047486,-582.12580266,0.00019999,2]
[363803374,1748877047688,-500.0,0.00019999,2]
[363803375,1748877047698,-582.12580266,0.00019999,2]
[363803376,1748877047708,-248.27284414,0.00019999,2]
[363803377,1748877047718,-582.12580266,0.00019999,2]
[363803378,1748877047728,-582.12580266,0.00019999,2]
[363803379,1748877047738,-582.12580266,0.00019999,2]
[363803380,1748877047747,-500.0,0.00019999,2]
[363803381,1748877047757,-582.12580266,0.00019999,2]
[363803382,1748877047767,-582.12580266,0.00019999,2]
[363803383,1748877047777,-500.0,0.00019999,2]
[363803384,1748877047787,-582.12580266,0.00019999,2]
[363803385,1748877047797,-500.0,0.00019999,2]
[363803386,1748877047806,-582.12580266,0.00019999,2]
[363803387,1748877047816,-351.25276232,0.00019999,2]
[363803388,1748877047826,-500.0,0.00019999,2]
[363803389,1748877047836,-582.12580266,0.00019999,2]
[363803390,1748877047847,-500.0,0.00019999,2]
[363803391,1748877047859,-500.0,0.00019999,2]
[363803392,1748877047868,-500.0,0.00019999,2]
[363803393,1748877047877,-500.0,0.00019999,2]
[363803394,1748877047887,-500.0,0.00019999,2]
[363803395,1748877047896,-500.0,0.00019999,2]
[363803396,1748877047906,-500.0,0.00019999,2]
[363803397,1748877047915,-582.12580266,0.00019999,2]
[363803398,1748877047925,-500.0,0.00019999,2]
[363803399,1748877047937,-500.0,0.00019999,2]
[363803400,1748877047947,-227.41336413,0.00019999,2]
[363803401,1748877047956,-500.0,0.00019999,2]
[363803402,1748877047966,-453.90877018,0.00019999,2]
[363803403,1748877047976,-582.12580266,0.00019999,2]
[363803404,1748877047985,-500.0,0.00019999,2]
[363803405,1748877047995,-500.0,0.00019999,2]
[363803406,1748877048005,-500.0,0.00019999,2]
[363803407,1748877048014,-630.92667445,0.00019999,2]
[363803408,1748877048024,-500.0,0.00019999,2]
[363803409,1748877048034,-500.0,0.00019999,2]
[363803410,1748877048044,-500.0,0.00019999,2]
[363803411,1748877048054,-500.0,0.00019999,2]
[363803412,1748877048064,-500.0,0.00019999,2]
[363803413,1748877048076,-500.0,0.00019999,2]
[363803414,1748877048085,-500.0,0.00019999,2]
[363803415,1748877048094,-500.0,0.00019999,2]
[363803416,1748877048104,-500.0,0.00019999,2]
[363803417,1748877048113,-500.0,0.00019999,2]
[363803418,1748877048122,-500.0,0.00019999,2]
[363803419,1748877048131,-500.0,0.00019999,2]
[363803420,1748877048141,-500.0,0.00019999,2]
[363803421,1748877048150,-500.0,0.00019999,2]
[363803422,1748877048159,-500.0,0.00019999,2]
[363803423,1748877048168,-582.12580266,0.00019999,2]
[363803424,1748877048177,-500.0,0.00019999,2]
[363803425,1748877048186,-500.0,0.00019999,2]
[363803426,1748877048195,-500.0,0.00019999,2]
[363803427,1748877048204,-500.0,0.00019999,2]
[363803428,1748877048212,-500.0,0.00019999,2]
[363803429,1748877048221,-500.0,0.00019999,2]
[363803430,1748877048230,-500.0,0.00019999,2]
[363803431,1748877048239,-500.0,0.00019999,2]
[363803432,1748877048259,-500.0,0.00019999,2]
[363803433,1748877048274,-500.0,0.00019999,2]
[363803434,1748877048284,-500.0,0.00019999,2]
[363803435,1748877048294,-500.0,0.00019999,2]
[363803436,1748877048304,-500.0,0.00019999,2]
[363803437,1748877048315,-500.0,0.00019999,2]
[363803438,1748877048326,-500.0,0.00019999,2]
[363803439,1748877048336,-500.0,0.00019999,2]
[363803440,1748877048347,-500.0,0.00019999,2]
[363803441,1748877048358,-500.0,0.00019999,2]
[363803442,1748877048368,-500.0,0.00019999,2]
[363803443,1748877048378,-500.0,0.00019999,2]
[363803444,1748877048389,-500.0,0.00019999,2]
[363803445,1748877048400,-285.68881505,0.00019999,2]
[363803446,1748877048410,-500.0,0.00019999,2]
[363803447,1748877048420,-500.0,0.00019999,2]
[363803448,1748877048430,-500.0,0.00019999,2]
[363803449,1748877048440,-500.0,0.00019999,2]
[363803450,1748877048451,-500.0,0.00019999,2]
[363803451,1748877048461,-500.0,0.00019999,2]
[363803452,1748877048471,-500.0,0.00019999,2]
[363803453,1748877048482,-280.14510233,0.00019999,2]
[363803454,1748877048493,-500.0,0.00019999,2]
[363803455,1748877048504,-500.0,0.00019999,2]
[363803456,1748877048513,-500.0,0.00019999,2]
[363803457,1748877048523,-500.0,0.00019999,2]
[363803458,1748877048534,-500.0,0.00019999,2]
[363803459,1748877048545,-500.0,0.00019999,2]
[363803460,1748877048555,-500.0,0.00019999,2]
[363803461,1748877048565,-500.0,0.00019999,2]
[363803462,1748877048575,-500.0,0.00019999,2]
[363803463,1748877048586,-1013.86293568,0.00019999,2]
[363803464,1748877048596,-1013.86293568,0.00019999,2]
[363803465,1748877048607,-1013.86293568,0.00019999,2]
[363803466,1748877048617,-1013.86293568,0.00019999,2]
[363803467,1748877048626,-1013.86293568,0.00019999,2]
[363803468,1748877048636,-1013.86293568,0.00019999,2]
[363803469,1748877048646,-1013.86293568,0.00019999,2]
[363803470,1748877048656,-1013.86293568,0.00019999,2]
[363803471,1748877048666,-1013.86293568,0.00019999,2]
[363803472,1748877048676,-1013.86293568,0.00019999,2]
[363803473,1748877048686,-500.0,0.00019999,2]
[363803474,1748877048696,-500.0,0.00019999,2]
[363803475,1748877048706,-500.0,0.00019999,2]
[363803476,1748877048716,-500.0,0.00019999,2]
[363803477,1748877048725,-500.0,0.00019999,2]
[363803478,1748877048736,-500.0,0.00019999,2]
[363803479,1748877048745,-500.0,0.00019999,2]
[363803480,1748877048755,-500.0,0.00019999,2]
[363803481,1748877048765,-500.0,0.00019999,2]
[363803482,1748877048775,-500.0,0.00019999,2]
[363803483,1748877048785,-500.0,0.00019999,2]
[363803484,1748877048794,-500.0,0.00019999,2]
[363803485,1748877048804,-500.0,0.00019999,2]
[363803486,1748877048813,-500.0,0.00019999,2]
[363803487,1748877048823,-500.0,0.00019999,2]
[363803488,1748877048833,-500.0,0.00019999,2]
[363803489,1748877048846,-500.0,0.00019999,2]
[363803490,1748877048856,-500.0,0.00019999,2]
[363803491,1748877048866,-1013.86293568,0.00019999,2]
[363803492,1748877048876,-300.0,0.00019999,2]
[363803493,1748877048887,-500.0,0.00019999,2]
[363803494,1748877048897,-500.0,0.00019999,2]
[363803495,1748877048907,-500.0,0.00019999,2]
[363803496,1748877048918,-500.0,0.00019999,2]
[363803497,1748877048928,-500.0,0.00019999,2]
[363803498,1748877048938,-500.0,0.00019999,2]
[363803499,1748877048949,-500.0,0.00019999,2]
[363803500,1748877048959,-500.0,0.00019999,2]
[363803501,1748877048969,-500.0,0.00019999,2]
[363803502,1748877048979,-500.0,0.00019999,2]
[363803503,1748877048989,-500.0,0.00019999,2]
[363803504,1748877048999,-500.0,0.00019999,2]
[363803505,1748877049009,-500.0,0.00019999,2]
[363803506,1748877049019,-500.0,0.00019999,2]
[363803507,1748877049030,-500.0,0.00019999,2]
[363803508,1748877049040,-500.0,0.00019999,2]
[363803509,1748877049050,-1095.38299605,0.00019999,2]
[363803510,1748877049060,-1095.38299605,0.00019999,2]
[363803511,1748877049070,-1095.38299605,0.00019999,2]
[363803512,1748877049080,-1095.38299605,0.00019999,2]
[363803513,1748877049090,-500.0,0.00019999,2]
[363803514,1748877049099,-500.0,0.00019999,2]
[363803515,1748877049109,-500.0,0.00019999,2]
[363803516,1748877049119,-500.0,0.00019999,2]
[363803517,1748877049129,-500.0,0.00019999,2]
[363803518,1748877049139,-1232.26384386,0.0002,2]
[363803519,1748877049149,-1178824.38720861,0.0002,2]
[363803520,1748877049461,-32426.02711972,0.0002,2]
[363803521,1748877049476,-2445.2587925,0.0002,2]
[363803522,1748877049494,-811.87081842,0.0002,2]
[363803523,1748877049505,-1967.42797324,0.0002,2]
[363803524,1748877049534,-66041.49695344,0.0002,2]
[363803525,1748877049543,-140498.03480894,0.0002,2]
[363803526,1748877049555,-4655.45084,0.0002,2]
[363803527,1748877049571,-478.1675,0.0002,2]
[363803528,1748877049582,-15935.02461384,0.0002,2]
[363803529,1748877049593,-356.4599991,0.0002,2]
[363803530,1748877049605,-2825.88106722,0.0002,2]
[363803531,1748877049617,-62583.77568493,0.0002,2]
[363803532,1748877049637,-443.28907872,0.000199,2]
[363803533,1748877049788,-355.61424699,0.00019898,2]
[363803534,1748877049798,-267.1979,0.00019899,7]
[363803535,1748877049807,-5359.98936809,0.000199,2]
[363803536,1748877049817,-253687.72393931,0.0002,2]
[363803537,1748877049829,-1582.47763199,0.0002,2]
[363803538,1748877049848,-673.57615397,0.0002,2]
[363803539,1748877049859,-62276.47827112,0.0002,2]
[363803540,1748877049929,-1589.51258872,0.0002,2]
[363803541,1748877050061,-334.0,0.00019899,7]
[363803542,1748877050070,-4881.41,0.0002,2]
[363803543,1748877050081,-26415.83999994,0.0002,2]
[363803544,1748877050092,-3684.69036118,0.0002,2]
[363803545,1748877050103,-304.27883793,0.0002,2]
[363803546,1748877050118,-4041.15760001,0.0002,2]
[363803547,1748877050140,-545.66543492,0.0002,2]
[363803548,1748877050151,-261.81012156,0.0002,2]
[363803549,1748877050163,-3353.3588,0.0002,2]
[363803550,1748877050255,-355.61424699,0.000199,2]
[363803551,1748877050265,-4844.38575301,0.0002,2]
[363803552,1748877072908,150.0,0.00023,30]
[363803554,1748877087710,187.03,0.00013699,2]
[363803559,1748877132324,203.0,0.00018299,2]
[363803560,1748877259934,806.0,0.00023,30]
[363803561,1748877312352,150.0,0.00023,30]
[363803562,1748877315060,-1188.63090953,0.00025,120]
[363803563,1748877315093,-263.97,0.00025335,120]
[363803564,1748877315121,-2000.0,0.00025999,120]
[363803565,1748877315147,-511.639329,0.00025999,120]
[363803566,1748877315187,-900.0,0.00027,120]
[363803567,1748877315246,-3048.69313203,0.0002739,120]
[363803568,1748877315274,-235.23216841,0.00027397,120]
[363803569,1748877315305,-200.0,0.00027397,60]
[363803570,1748877315334,-274.27,0.00027397,80]
[363803571,1748877315361,-2000.0,0.00027499,120]
[363803572,1748877315390,-263.97,0.00027638,120]
[363803573,1748877315420,-400.0,0.00028,120]
[363803574,1748877315446,-647.0,0.00028,120]
[363803575,1748877315475,-393.27843,0.00028999,120]